bitfinex/quotes_SOLUSD_20250508
["timestamp","ask_amount","ask_price","bid_price","bid_amount"]
[1746696464514,17.82021867,152.82,152.8,9.8047567]
[1746696465019,17.82021867,152.82,152.81,9.8047567]
[1746696465825,17.82021867,152.82,152.78,11.27657256]
[1746696465826,34.17933396,152.82,152.79,9.8047567]
[1746696466029,34.17933396,152.82,152.8,9.8047567]
[1746696466723,34.17933396,152.82,152.81,9.8047567]
[1746696466930,27.75082621,152.82,152.81,9.8047567]
[1746696468530,27.75082621,152.82,152.8,9.8047567]
[1746696468708,27.75082621,152.82,152.81,9.8047567]
[1746696468924,39.02739877,152.82,152.79,9.8047567]
[1746696469433,39.02739877,152.82,152.81,9.8047567]
[1746696469633,34.17933396,152.82,152.81,9.8047567]
[1746696470634,39.03322432,152.82,152.81,9.8047567]
[1746696472329,27.75665176,152.82,152.81,9.8047567]
[1746696473425,11.39753647,152.82,152.81,9.8047567]
[1746696474926,6.54321795,152.83,152.81,9.8047567]
[1746696475231,4.86601953,152.82,152.81,9.8047567]
[1746696477229,11.40966564,152.82,152.81,9.8047567]
[1746696478937,11.40966564,152.82,152.81,21.08132926]
[1746696480132,11.40966564,152.82,152.81,11.27657256]
[1746696480341,11.40966564,152.82,152.81,9.8047567]
[1746696480741,11.40966564,152.82,152.81,21.08132926]
[1746696481421,11.40966564,152.82,152.81,30.58132926]
[1746696481721,11.40966564,152.82,152.81,19.3047567]
[1746696481920,11.40966564,152.82,152.81,30.58132926]
[1746696485823,4.86601953,152.82,152.81,30.58132926]
[1746696487144,34.17112915,152.88,152.81,19.3047567]
[1746696487444,22.89455659,152.88,152.83,11.27657256]
[1746696487629,34.17112915,152.88,152.83,11.27657256]
[1746696488243,4.88044858,152.87,152.85,9.8047567]
[1746696489545,11.42238237,152.86,152.85,9.8047567]
[1746696493636,11.42238237,152.86,152.85,21.08132926]
[1746696496246,11.42238237,152.86,152.85,9.8047567]
[1746696496949,11.42238237,152.86,152.85,21.08132926]
[1746696498549,11.42238237,152.86,152.85,9.8047567]
[1746696499125,11.42238237,152.86,152.84,9.8047567]
[1746696500134,4.88044858,152.85,152.84,9.8047567]
[1746696500854,11.42281037,152.85,152.84,9.8047567]
[1746696502351,11.42281037,152.85,152.83,9.8047567]
[1746696502559,11.42281037,152.85,152.84,9.8047567]
[1746696507936,22.69938293,152.85,152.83,9.8047567]
[1746696508135,11.27657256,152.84,152.81,19.3047567]
[1746696508336,39.05528741,152.85,152.83,9.8047567]
[1746696509155,4.88044858,152.84,152.83,9.8047567]
[1746696509451,11.42323842,152.84,152.83,9.8047567]
[1746696509650,11.42323842,152.84,152.83,21.08132926]
[1746696510654,4.88044858,152.84,152.83,21.08132926]
[1746696511347,11.42323842,152.84,152.83,21.08132926]
[1746696511856,11.42323842,152.84,152.83,9.8047567]
[1746696513971,11.42323842,152.84,152.83,21.08132926]
[1746696514547,11.42323842,152.84,152.83,9.8047567]
[1746696517436,11.42323842,152.84,152.83,4.8047567]
[1746696520567,11.42323842,152.84,152.82,4.8047567]
[1746696520878,11.42323842,152.84,152.83,4.8047567]
[1746696521494,11.42323842,152.84,152.82,4.8047567]
[1746696521673,11.42323842,152.84,152.8,11.27657256]
[1746696521674,11.42323842,152.84,152.83,4.8047567]
[1746696522278,11.42323842,152.84,152.83,16.08132926]
[1746696523378,11.42323842,152.84,152.83,4.8047567]
[1746696524559,11.42323842,152.84,152.83,16.08132926]
[1746696524969,11.42323842,152.84,152.83,4.8047567]
[1746696533981,11.42323842,152.84,152.83,16.08132926]
[1746696534658,4.88044858,152.84,152.83,16.08132926]
[1746696538059,11.42323842,152.84,152.83,16.08132926]
[1746696538262,4.88044858,152.84,152.83,16.08132926]
[1746696549686,4.88044858,152.84,152.83,42.83179607]
[1746696549988,4.88044858,152.84,152.83,125.63179607]
[1746696552392,16.34564023,152.95,152.9,4.8047567]
[1746696552569,16.34564023,152.95,152.94,4.8047567]
[1746696553995,16.34564023,152.95,152.93,4.8047567]
[1746696554194,16.34564023,152.95,152.94,4.8047567]
[1746696555090,22.88372457,152.95,152.94,4.8047567]
[1746696555291,22.88372457,152.95,152.93,4.8047567]
[1746696555492,22.88372457,152.95,152.94,4.8047567]
[1746696556189,22.73142937,152.95,152.94,4.8047567]
[1746696557200,22.73142937,152.95,152.93,4.8047567]
[1746696557794,22.73142937,152.95,152.94,4.8047567]
[1746696558272,22.73142937,152.95,152.93,4.8047567]
[1746696558475,22.73142937,152.95,152.94,4.8047567]
[1746696559398,34.00800193,152.95,152.92,4.8047567]
[1746696559581,11.27657256,152.94,152.92,4.8047567]
[1746696559778,11.27657256,152.94,152.91,4.8047567]
[1746696559998,11.27657256,152.94,152.93,4.8047567]
[1746696560401,11.27657256,152.94,152.91,4.8047567]
[1746696560693,11.27657256,152.93,152.91,4.8047567]
[1746696561204,11.27657256,152.93,152.87,15.92]
[1746696561205,17.81593954,152.92,152.9,4.8047567]
[1746696561405,17.81593954,152.92,152.87,27.19657256]
[1746696561406,34.16435701,152.92,152.91,4.8047567]
[1746696562303,34.16435701,152.92,152.9,4.8047567]
[1746696562510,34.16435701,152.92,152.89,4.8047567]
[1746696563076,22.88778445,152.92,152.9,4.8047567]
[1746696563501,22.88778445,152.92,152.91,4.8047567]
[1746696564002,22.88778445,152.92,152.9,4.8047567]
[1746696564189,34.16435701,152.92,152.9,4.8047567]
[1746696564388,34.16435701,152.92,152.89,4.8047567]
[1746696565306,4.86824146,152.91,152.89,4.8047567]
[1746696565699,16.14481402,152.91,152.89,4.8047567]
[1746696566399,4.86824146,152.9,152.89,4.8047567]
[1746696566900,4.86824146,152.9,152.88,4.8047567]
[1746696567108,11.40846382,152.9,152.89,4.8047567]
[1746696571607,11.40846382,152.9,152.88,4.8047567]
[1746696571786,11.40846382,152.9,152.89,4.8047567]
[1746696577624,22.68503638,152.9,152.88,4.8047567]
[1746696577798,39.03559229,152.9,152.88,4.8047567]
[1746696578197,16.14481402,152.89,152.87,4.8047567]
[1746696578498,11.27657256,152.88,152.87,4.8047567]
[1746696578904,16.14481402,152.88,152.87,4.8047567]
[1746696579298,16.14481402,152.88,152.85,4.8047567]
[1746696579494,16.14481402,152.88,152.87,4.8047567]
[1746696579495,4.86824146,152.88,152.87,4.8047567]
[1746696579697,11.40931942,152.88,152.87,4.8047567]
[1746696579901,22.68589198,152.88,152.87,4.8047567]
[1746696580417,22.68589198,152.88,152.86,4.8047567]
[1746696580617,22.68589198,152.88,152.83,11.27657256]
[1746696580618,22.68589198,152.88,152.87,4.8047567]
[1746696582315,11.40931942,152.88,152.87,4.8047567]
[1746696582710,22.68589198,152.88,152.87,4.8047567]
[1746696582917,11.40931942,152.88,152.87,4.8047567]
[1746696583107,22.68589198,152.88,152.87,4.8047567]
[1746696583304,11.40931942,152.88,152.87,4.8047567]
[1746696583813,22.68589198,152.88,152.87,4.8047567]
[1746696584414,11.40931942,152.88,152.87,4.8047567]
[1746696585529,39.0385869,152.88,152.83,4.8047567]
[1746696585710,11.27657256,152.87,152.83,4.8047567]
[1746696585908,4.86824146,152.86,152.84,4.8047567]
[1746696586305,16.14481402,152.86,152.83,4.8047567]
[1746696586510,16.14481402,152.86,152.84,4.8047567]
[1746696586706,4.86824146,152.86,152.84,4.8047567]
[1746696586911,4.86824146,152.85,152.84,16.08132926]
[1746696593028,11.41060325,152.85,152.84,16.08132926]
[1746696593530,11.41060325,152.85,152.84,4.8047567]
[1746696595323,11.41060325,152.85,152.84,16.08132926]
[1746696595737,11.41060325,152.85,152.84,12.04036647]
[1746696599016,11.41060325,152.85,152.84,4.8047567]
[1746696606546,18.64621302,152.85,152.84,4.8047567]
[1746696606851,35.0021175,152.85,152.81,4.8047567]
[1746696607021,7.23560977,152.83,152.81,4.8047567]
[1746696607429,4.86824146,152.82,152.81,4.8047567]
[1746696609142,11.61324309,152.89,152.81,44.46969944]
[1746696609316,6.53851183,152.94,152.93,4.8047567]
[1746696609643,6.53851183,152.94,152.93,12.04036647]
[1746696609817,22.88119714,152.97,152.93,16.09423894]
[1746696610018,22.88119714,152.97,152.94,11.28948224]
[1746696611649,22.88119714,152.97,152.93,16.09423894]
[1746696615254,34.17067938,152.97,152.93,16.09423894]
[1746696615430,34.17067938,152.97,152.93,4.8047567]
[1746696615855,11.28948224,152.96,152.93,4.8047567]
[1746696616426,6.53808434,152.95,152.93,4.8047567]
[1746696616652,17.82756658,152.95,152.93,4.8047567]
[1746696618964,6.53808434,152.95,152.93,4.8047567]
[1746696619728,22.88329519,152.95,152.93,4.8047567]
[1746696622257,34.17277743,152.95,152.93,4.8047567]
[1746696623651,34.17277743,152.95,152.92,4.8047567]
[1746696623957,34.17277743,152.95,152.93,4.8047567]
[1746696624559,34.17277743,152.95,152.92,4.8047567]
[1746696624744,34.17277743,152.95,152.93,4.8047567]
[1746696624945,34.17277743,152.95,152.92,4.8047567]
[1746696625148,34.17277743,152.95,152.93,4.8047567]
[1746696625563,22.88329519,152.95,152.92,4.8047567]
[1746696625865,22.88329519,152.95,152.93,4.8047567]
[1746696631755,34.17277743,152.95,152.93,4.8047567]
[1746696633062,34.17277743,152.95,152.92,4.8047567]
[1746696633369,11.28948224,152.94,152.92,4.8047567]
[1746696634675,6.53893938,152.93,152.92,4.8047567]
[1746696634854,34.17577008,152.93,152.9,4.8047567]
[1746696635038,22.88628784,152.93,152.9,4.8047567]
[1746696635244,11.28948224,152.92,152.9,4.8047567]
[1746696635970,6.53979465,152.91,152.9,4.8047567]
[1746696640479,55.57137873,152.96,152.9,4.8047567]
[1746696640781,11.28948224,152.93,152.91,4.8047567]
[1746696641476,11.28948224,152.93,152.9,4.8047567]
[1746696641650,6.53936698,152.92,152.9,4.8047567]
[1746696642274,6.53936698,152.92,152.91,4.8047567]
[1746696642446,6.53936698,152.92,152.9,4.8047567]
[1746696643076,6.53936698,152.92,152.91,0.5]
[1746696643764,17.82884922,152.92,152.91,0.5]
[1746696644158,55.57137873,152.96,152.91,5.3047567]
[1746696644359,11.28948224,152.92,152.91,5.3047567]
[1746696644752,11.28948224,152.92,152.91,0.5]
[1746696645155,11.28948224,152.92,152.91,5.3047567]
[1746696645666,11.28948224,152.92,152.91,5.15246149]
[1746696645868,11.28948224,152.92,152.91,4.8047567]
[1746696646351,6.53979465,152.91,152.9,4.8047567]
[1746696649477,34.17876351,152.91,152.87,6.4015567]
[1746696649654,11.28948224,152.9,152.88,4.8047567]
[1746696650673,6.54065014,152.89,152.88,4.8047567]
[1746696651472,6.54065014,152.89,152.87,6.4015567]
[1746696651676,6.54065014,152.89,152.88,4.8047567]
[1746696654874,6.54065014,152.89,152.87,6.4015567]
[1746696655382,6.54065014,152.89,152.88,4.8047567]
[1746696656183,6.54065014,152.89,152.87,6.4015567]
[1746696656675,6.54065014,152.89,152.88,4.8047567]
[1746696659375,6.54065014,152.89,152.87,6.4015567]
[1746696659578,6.54065014,152.89,152.88,4.8047567]
[1746696664108,6.54037425,152.9,152.89,4.8047567]
[1746696665087,16.34745314,152.93,152.86,7.23315725]
[1746696665088,6.53936698,152.92,152.91,4.8047567]
[1746696668298,13.76611602,153.07,153.03,4.8047567]
[1746696668787,7.23315725,153.06,153.03,4.8047567]
[1746696668984,6.53295877,153.07,153.03,4.8047567]
[1746696669160,7.23315725,153.06,153.03,4.8047567]
[1746696669878,11.27976875,153.06,153.03,4.8047567]
[1746696670074,6.53381247,153.05,153.03,4.8047567]
[1746696671468,11.27976875,153.04,153.0,4.8047567]
[1746696671675,11.27976875,153.03,153.0,4.8047567]
[1746696671887,11.27976875,153.02,153.01,4.8047567]
[1746696672087,17.8148622,153.02,153.01,4.8047567]
[1746696674282,6.53509345,153.02,153.01,4.8047567]
[1746696680091,17.81443515,153.03,153.01,4.8047567]
[1746696680861,17.81443515,153.03,153.02,4.8047567]
[1746696681604,17.81443515,153.03,153.01,4.8047567]
[1746696681760,11.27976875,153.02,153.0,4.8047567]
[1746696682084,22.87133241,153.03,153.0,4.8047567]
[1746696682085,11.27976875,153.01,153.0,4.8047567]
[1746696682584,11.27976875,153.01,152.99,4.8047567]
[1746696682884,11.27976875,153.01,153.0,4.8047567]
[1746696683268,11.27976875,153.01,152.99,4.8047567]
[1746696683467,11.27976875,153.01,153.0,4.8047567]
[1746696683881,17.8152893,153.01,153.0,4.8047567]
[1746696686194,17.8152893,153.01,152.99,4.8047567]
[1746696686386,17.8152893,153.01,153.0,4.8047567]
[1746696692099,6.53552055,153.01,153.0,4.8047567]
[1746696693495,4.77103826,153.12,153.08,4.8047567]
[1746696693684,6.53125204,153.11,153.1,4.8047567]
[1746696693887,6.53125204,153.11,153.09,4.8047567]
[1746696694200,6.53125204,153.11,153.09,16.08452545]
[1746696694380,6.53125204,153.11,153.1,4.8047567]
[1746696695095,6.53125204,153.11,153.09,16.08452545]
[1746696695286,6.53125204,153.11,153.1,4.8047567]
[1746696695491,6.530399,153.13,153.1,4.8047567]
[1746696695690,6.530399,153.13,153.09,16.08452545]
[1746696695998,6.530399,153.13,153.11,4.8047567]
[1746696696178,6.530399,153.13,153.09,16.08452545]
[1746696696374,6.530399,153.13,153.11,4.8047567]
[1746696696608,6.530399,153.13,153.09,16.08452545]
[1746696696789,6.530399,153.13,153.11,4.8047567]
[1746696697300,34.13616526,153.13,153.09,4.8047567]
[1746696697685,34.13616526,153.13,153.11,4.8047567]
[1746696698095,34.13616526,153.13,153.09,16.08452545]
[1746696698403,34.13616526,153.13,153.11,4.8047567]
[1746696698605,34.13616526,153.13,153.09,4.8047567]
[1746696698808,34.13616526,153.13,153.11,4.8047567]
[1746696699594,34.13616526,153.13,153.09,4.8047567]
[1746696699884,11.27976875,153.12,153.09,4.8047567]
[1746696700093,11.27976875,153.12,153.07,11.27976875]
[1746696700094,11.27976875,153.12,153.11,4.8047567]
[1746696700383,11.27976875,153.12,153.09,4.8047567]
[1746696700906,11.27976875,153.12,153.11,4.8047567]
[1746696701098,11.27976875,153.12,153.09,17.2047567]
[1746696701300,11.27976875,153.12,153.11,4.8047567]
[1746696701490,6.53125204,153.11,153.09,17.2047567]
[1746696701806,11.27976875,153.1,153.09,17.2047567]
[1746696702103,11.27976875,153.1,153.09,4.8047567]
[1746696703701,17.81144739,153.1,153.09,4.8047567]
[1746696705510,17.81144739,153.1,153.08,4.8047567]
[1746696705690,17.81144739,153.1,153.09,4.8047567]
[1746696707216,17.81144739,153.1,153.08,4.8047567]
[1746696707410,17.81144739,153.1,153.09,4.8047567]
[1746696708218,17.81144739,153.1,153.08,4.8047567]
[1746696708419,17.81144739,153.1,153.09,4.8047567]
[1746696709604,17.81144739,153.1,153.08,4.8047567]
[1746696710130,17.81144739,153.1,153.09,4.8047567]
[1746696710723,17.81144739,153.1,153.08,4.8047567]
[1746696711031,17.81144739,153.1,153.09,4.8047567]
[1746696712328,17.81144739,153.1,153.08,4.8047567]
[1746696712530,17.81144739,153.1,153.09,4.8047567]
[1746696713816,6.53167864,153.1,153.09,4.8047567]
[1746696716029,17.81144739,153.1,153.09,4.8047567]
[1746696716403,17.81144739,153.1,153.08,4.8047567]
[1746696716647,17.81144739,153.1,153.09,4.8047567]
[1746696719829,17.81144739,153.1,153.08,4.8047567]
[1746696720013,17.81144739,153.1,153.09,4.8047567]
[1746696720932,6.53167864,153.1,153.09,4.8047567]
[1746696721523,6.53167864,153.1,153.08,4.8047567]
[1746696721732,34.13935298,153.11,153.09,4.8047567]
[1746696722330,34.13935298,153.11,153.08,4.8047567]
[1746696722507,34.13935298,153.11,153.09,4.8047567]
[1746696725331,34.13935298,153.11,153.08,4.8047567]
[1746696725531,34.13935298,153.11,153.09,4.8047567]
[1746696726221,11.27976875,153.1,153.09,4.8047567]
[1746696726546,11.27976875,153.1,153.04,79.92941761]
[1746696726547,11.27976875,153.1,153.07,4.8047567]
[1746696726731,11.27976875,153.08,153.07,4.8047567]
[1746696727654,11.27976875,153.08,153.06,4.8047567]
[1746696727825,17.81272752,153.07,153.06,4.8047567]
[1746696728810,22.67274672,153.07,153.06,4.8047567]
[1746696729009,71.66993754,153.07,153.02,4.8047567]
[1746696729327,11.27976875,153.03,153.01,4.8047567]
[1746696729525,11.27976875,153.02,153.01,4.8047567]
[1746696729843,17.8148622,153.02,153.01,4.8047567]
[1746696730046,22.6748814,153.02,153.01,4.8047567]
[1746696730447,22.6748814,153.02,153.0,4.8047567]
[1746696730651,11.27976875,153.01,152.98,4.8047567]
[1746696730826,11.27976875,152.99,152.98,4.8047567]
[1746696731327,15.63978795,152.99,152.98,4.8047567]
[1746696732044,22.17616287,152.99,152.98,17.2047567]
[1746696732341,22.67616287,152.99,152.98,17.2047567]
[1746696733250,22.67616287,152.99,152.98,4.8047567]
[1746696735140,4.8600192,152.99,152.98,16.08452545]
[1746696736683,6.53604497,153.0,152.98,16.08452545]
[1746696737131,6.53604497,153.0,152.99,9.5]
[1746696737661,6.53604497,153.0,152.99,14.3047567]
[1746696738153,11.39486471,153.0,152.99,14.3047567]
[1746696739652,4.85881974,153.0,152.99,44.23417431]
[1746696740558,6.53530253,153.02,153.01,4.8047567]
[1746696740756,6.53530253,153.02,153.01,16.08452545]
[1746696741649,4.85790609,153.02,153.01,16.08452545]
[1746696741841,4.85790609,153.02,153.01,34.73417431]
[1746696743254,6.53427389,153.04,153.02,18.64964886]
[1746696743453,6.53427389,153.04,153.03,11.27976875]
[1746696743653,6.53295877,153.07,153.05,4.8047567]
[1746696743852,6.53295877,153.07,153.06,4.8047567]
[1746696744279,22.6732887,153.07,153.06,4.8047567]
[1746696745379,22.6732887,153.07,153.05,4.8047567]
[1746696745677,22.6732887,153.07,153.06,4.8047567]
[1746696745978,17.81272752,153.07,153.06,4.8047567]
[1746696746149,17.81272752,153.07,153.05,4.8047567]
[1746696746347,17.81272752,153.07,153.06,4.8047567]
[1746696747086,22.67844121,153.07,153.06,4.8047567]
[1746696747267,11.39867246,153.07,153.06,4.8047567]
[1746696747460,11.39867246,153.07,153.05,4.8047567]
[1746696747661,11.39867246,153.07,153.06,4.8047567]
[1746696752593,22.67844121,153.07,153.06,4.8047567]
[1746696754266,39.01083815,153.07,153.04,4.8047567]
[1746696754471,39.01083815,153.07,153.03,4.8047567]
[1746696754472,27.7310694,153.07,153.03,4.8047567]
[1746696754776,6.5346664,153.03,153.02,4.8047567]
[1746696754981,17.81443515,153.03,153.02,4.8047567]
[1746696755179,11.40038009,153.03,153.02,4.8047567]
[1746696758980,39.01681485,153.03,152.99,4.8047567]
[1746696759183,27.7370461,153.03,153.0,4.8047567]
[1746696759385,11.27976875,153.01,152.99,4.8047567]
[1746696759580,27.7370461,153.03,153.0,4.8047567]
[1746696760395,6.53552055,153.01,153.0,4.8047567]
[1746696760697,17.8152893,153.01,153.0,4.8047567]
[1746696761495,22.68100299,153.01,153.0,4.8047567]
[1746696762570,22.68100299,153.01,152.99,4.8047567]
[1746696763006,11.27976875,153.0,152.98,4.8047567]
[1746696763293,11.27976875,152.99,152.98,4.8047567]
[1746696763999,4.86571369,153.0,152.98,4.8047567]
[1746696764206,16.14548244,152.99,152.98,4.8047567]
[1746696765298,39.02279467,152.99,152.95,4.8047567]
[1746696765498,27.74302592,152.99,152.98,4.8047567]
[1746696765687,39.02279467,152.99,152.98,4.8047567]
[1746696766203,39.02279467,152.99,152.96,4.8047567]
[1746696766405,26.0,152.96,152.91,6.4004567]
[1746696766605,26.0,152.96,152.93,4.8047567]
[1746696766897,11.27976875,152.94,152.92,4.8047567]
[1746696767102,4.86571369,152.95,152.93,4.8047567]
[1746696767403,6.53851183,152.94,152.93,4.8047567]
[1746696767582,11.40422552,152.94,152.93,4.8047567]
[1746696767785,11.40422552,152.94,152.92,4.8047567]
[1746696767984,11.40422552,152.94,152.93,4.8047567]
[1746696768284,22.68399427,152.94,152.93,4.8047567]
[1746696770205,11.40422552,152.94,152.93,4.8047567]
[1746696770700,22.68399427,152.94,152.93,4.8047567]
[1746696771911,11.40422552,152.94,152.93,4.8047567]
[1746696772982,4.86571369,152.94,152.93,16.08452545]
[1746696773186,4.86571369,152.94,152.93,17.68332545]
[1746696773893,6.53776443,152.96,152.93,17.68332545]
[1746696774112,6.53776443,152.96,152.94,11.27976875]
[1746696774493,6.53722952,152.97,152.96,4.8047567]
[1746696775204,11.38183263,152.97,152.96,4.8047567]
[1746696778909,4.84460311,152.97,152.96,16.08452545]
[1746696779432,4.84460311,152.97,152.96,34.73417431]
[1746696779799,4.84460311,152.97,152.96,91.27183121]
[1746696780000,6.53564793,153.01,153.0,4.8047567]
[1746696781024,11.27976875,153.03,153.0,4.8047567]
[1746696781325,11.27976875,153.03,153.01,4.8047567]
[1746696781722,11.27976875,153.03,153.0,4.8047567]
[1746696781912,11.27976875,153.03,153.01,4.8047567]
[1746696782113,11.37942668,153.02,153.01,4.8047567]
[1746696783231,11.37942668,153.02,153.01,16.08452545]
[1746696783424,6.53509345,153.02,153.01,4.8047567]
[1746696783606,6.53509345,153.02,153.01,16.08452545]
[1746696784247,16.33664811,153.04,153.03,4.8047567]
[1746696784608,21.18155353,153.04,153.03,4.8047567]
[1746696785634,4.84490542,153.04,153.03,4.8047567]
[1746696786446,6.53381247,153.05,153.03,4.8047567]
[1746696787532,6.53381247,153.05,153.04,4.8047567]
[1746696788338,11.37829634,153.05,153.04,4.8047567]
[1746696789413,22.65806509,153.05,153.03,4.8047567]
[1746696789716,11.27976875,153.04,153.0,4.8047567]
[1746696789915,11.27976875,153.01,152.99,4.8047567]
[1746696790115,11.27976875,153.0,152.99,4.8047567]
[1746696790620,17.81571646,153.0,152.99,4.8047567]
[1746696792330,6.53594771,153.0,152.99,4.8047567]
[1746696797016,11.38252911,153.0,152.99,4.8047567]
[1746696799428,11.38252911,153.0,152.99,16.08452545]
[1746696800441,6.53594771,153.0,152.99,4.8047567]
[1746696801246,6.53552055,153.01,152.99,4.8047567]
[1746696801545,6.53552055,153.01,153.0,4.8047567]
[1746696802533,11.38771428,153.01,152.99,4.8047567]
[1746696802732,11.38771428,153.01,153.0,4.8047567]
[1746696803741,22.66748303,153.01,153.0,4.8047567]
[1746696804052,39.00628441,153.01,152.98,4.8047567]
[1746696804255,11.27976875,152.99,152.98,4.8047567]
[1746696804752,16.13196248,152.99,152.98,4.8047567]
[1746696805954,22.6683374,152.99,152.98,4.8047567]
[1746696807149,39.00927471,152.99,152.96,4.8047567]
[1746696807356,11.27976875,152.97,152.96,4.8047567]
[1746696807957,16.13196248,152.97,152.96,4.8047567]
[1746696808455,22.669192,152.97,152.96,4.8047567]
[1746696809434,39.0122658,152.97,152.94,4.8047567]
[1746696809631,11.27976875,152.96,152.94,4.8047567]
[1746696809822,4.85219373,152.95,152.94,4.8047567]
[1746696810037,16.13196248,152.95,152.94,4.8047567]
[1746696810760,11.39027807,152.95,152.94,4.8047567]
[1746696810962,22.67004682,152.95,152.93,4.8047567]
[1746696811144,11.27976875,152.94,152.91,4.8047567]
[1746696811342,11.27976875,152.92,152.91,4.8047567]
[1746696811959,11.27976875,152.93,152.91,4.8047567]
[1746696812259,11.27976875,152.94,152.91,4.8047567]
[1746696812753,6.53893938,152.93,152.91,4.8047567]
[1746696812956,11.3874465,152.93,152.91,4.8047567]
[1746696813954,11.3878741,152.92,152.91,4.8047567]
[1746696815243,11.3878741,152.92,152.9,4.8047567]
[1746696815842,6.53936698,152.92,152.9,4.8047567]
[1746696816357,6.53936698,152.92,152.91,4.8047567]
[1746696817154,6.53936698,152.92,152.88,11.27976875]
[1746696817155,17.81913573,152.92,152.9,4.8047567]
[1746696817334,6.53936698,152.92,152.9,4.8047567]
[1746696817528,17.81913573,152.92,152.9,4.8047567]
[1746696817728,34.1675532,152.92,152.89,4.8047567]
[1746696817964,16.12753714,152.91,152.88,4.8047567]
[1746696818157,16.12753714,152.91,152.89,4.8047567]
[1746696818158,6.54022236,152.9,152.89,4.8047567]
[1746696818760,17.81999111,152.9,152.88,4.8047567]
[1746696818939,22.6677595,152.9,152.88,4.8047567]
[1746696819135,22.6677595,152.9,152.89,4.8047567]
[1746696819355,22.6677595,152.9,152.88,4.8047567]
[1746696819754,22.6677595,152.9,152.89,4.8047567]
[1746696820752,11.38799075,152.9,152.89,4.8047567]
[1746696821052,22.6677595,152.9,152.89,4.8047567]
[1746696821251,22.6677595,152.9,152.88,4.8047567]
[1746696821450,11.38799075,152.9,152.89,4.8047567]
[1746696821789,22.6677595,152.9,152.89,4.8047567]
[1746696823559,11.38799075,152.9,152.88,4.8047567]
[1746696823776,16.12753714,152.89,152.88,4.8047567]
[1746696824064,26.74859094,152.89,152.85,4.8047567]
[1746696824251,11.27976875,152.87,152.86,4.8047567]
[1746696824751,11.27976875,152.88,152.86,4.8047567]
[1746696825553,11.27976875,152.88,152.87,4.8047567]
[1746696825757,17.82084671,152.88,152.87,4.8047567]
[1746696826366,22.65180978,152.88,152.87,4.8047567]
[1746696827668,17.82084671,152.88,152.87,4.8047567]
[1746696828047,34.17354163,152.88,152.87,4.8047567]
[1746696828649,34.17354163,152.88,152.85,4.8047567]
[1746696828976,34.17354163,152.88,152.87,4.8047567]
[1746696830371,34.17354163,152.88,152.85,4.8047567]
[1746696831067,34.17354163,152.88,152.87,4.8047567]
[1746696831564,22.89377288,152.88,152.87,4.8047567]
[1746696831750,34.17354163,152.88,152.87,4.8047567]
[1746696832673,34.17354163,152.88,152.85,4.8047567]
[1746696832973,11.27976875,152.87,152.85,4.8047567]
[1746696833349,34.17354163,152.88,152.85,4.8047567]
[1746696834473,16.35269492,152.88,152.85,4.8047567]
[1746696834675,27.63246367,152.88,152.85,4.8047567]
[1746696834875,27.63246367,152.88,152.83,16.08452545]
[1746696835065,27.63246367,152.88,152.85,4.8047567]
[1746696836077,34.17354163,152.88,152.84,4.8047567]
[1746696836282,11.27976875,152.87,152.85,4.8047567]
[1746696836480,34.17354163,152.88,152.85,4.8047567]
[1746696837380,34.17354163,152.88,152.84,4.8047567]
[1746696837559,34.17354163,152.88,152.85,4.8047567]
[1746696838283,6.54193379,152.86,152.85,4.8047567]
[1746696838457,6.54193379,152.86,152.84,4.8047567]
[1746696838662,6.54193379,152.86,152.85,4.8047567]
[1746696840380,6.54150585,152.87,152.86,4.8047567]
[1746696840759,6.54150585,152.87,152.86,16.08452545]
[1746696840960,6.54150585,152.87,152.86,4.8047567]
[1746696841878,16.35269492,152.88,152.86,4.8047567]
[1746696843395,22.89377288,152.88,152.86,4.8047567]
[1746696843683,6.54107796,152.88,152.86,4.8047567]
[1746696843985,17.55178049,152.9,152.89,4.8047567]
[1746696844184,16.34728289,152.94,152.93,4.8047567]
[1746696844185,22.88579472,152.94,152.93,4.8047567]
[1746696845285,16.34728289,152.94,152.93,4.8047567]
[1746696845789,27.62705164,152.94,152.9,4.8047567]
[1746696846088,11.27976875,152.93,152.91,4.8047567]
[1746696846589,11.27976875,152.92,152.9,4.8047567]
[1746696847385,6.53979465,152.91,152.9,4.8047567]
[1746696847696,17.8195634,152.91,152.9,4.8047567]
[1746696847885,34.16905002,152.91,152.88,4.8047567]
[1746696848180,22.88928127,152.91,152.89,4.8047567]
[1746696848388,34.16905002,152.91,152.89,4.8047567]
[1746696848790,22.88928127,152.91,152.89,4.8047567]
[1746696848989,34.16905002,152.91,152.89,4.8047567]
[1746696849686,34.16905002,152.91,152.88,4.8047567]
[1746696849889,34.16905002,152.91,152.89,4.8047567]
[1746696850185,11.27976875,152.9,152.87,4.8047567]
[1746696850572,11.27976875,152.89,152.87,4.8047567]
[1746696851813,11.27976875,152.9,152.87,4.8047567]
[1746696852285,11.27976875,152.89,152.87,4.6558997]
[1746696852479,4.84814394,152.89,152.88,4.6558997]
[1746696852679,4.84814394,152.89,152.88,15.93566845]
[1746696853484,22.88628784,152.93,152.88,15.93566845]
[1746696853666,22.88628784,152.93,152.91,4.6558997]
[1746696854066,4.85259568,152.92,152.91,4.6558997]